bitfinex-derivatives/quotes_SOLF0:USTF0_20240830
["timestamp","ask_amount","ask_price","bid_price","bid_amount"]
[1724984919222,3.6035,138.75,138.72,3.65703565]
[1724984920432,3.6033,138.76,138.72,3.65703565]
[1724984921330,3.6034,138.75,138.72,0.05293565]
[1724984921627,34.63,138.76,138.72,0.05293565]
[1724984921831,3.6034,138.75,138.72,0.05293565]
[1724984926033,3.6032,138.76,138.72,3.65703565]
[1724984929740,3.6032,138.76,138.73,3.6039]
[1724984932646,34.63,138.8,138.72,0.05293565]
[1724984932838,34.63,138.8,138.71,5.66]
[1724984932839,34.63,138.8,138.75,0.05132136]
[1724984933036,3.6028,138.78,138.75,0.05132136]
[1724984933638,34.63,138.82,138.75,0.05132136]
[1724984933841,34.63,138.82,138.76,3.603]
[1724984934235,7.211,138.98,138.8,69.26]
[1724984934437,34.63,138.98,138.86,0.04874756]
[1724984934640,23.853,139.02,138.96,0.04855832]
[1724984934956,34.63,139.08,138.98,0.04633522]
[1724984934957,3.5974,138.99,138.98,0.04633522]
[1724984935238,3.60062015,139.0,138.97,0.05343409]
[1724984935447,34.63,139.0,138.88,34.63]
[1724984935633,6.38,138.99,138.88,34.63]
[1724984935837,3.5981,138.96,138.9,3.5994]
[1724984936545,0.05114608,138.94,138.92,0.04800132]
[1724984937141,0.05114608,138.94,138.88,34.63]
[1724984938143,0.05114608,138.94,138.9,0.05361227]
[1724984940458,0.05114608,138.94,138.9,3.65301227]
[1724984940651,0.05114608,138.94,138.9,0.05361227]
[1724984940944,34.68114608,138.94,138.84,34.63]
[1724984941145,35.9512,138.96,138.84,34.63]
[1724984941647,35.9512,138.96,138.86,34.63]
[1724984941845,0.05109031,138.9,138.89,3.5995]
[1724984942043,0.05537209,138.91,138.88,0.04926714]
[1724984942248,0.05537209,138.91,138.88,34.67926714]
[1724984942652,0.05537209,138.91,138.9,3.5995]
[1724984946052,0.05537209,138.91,138.9,38.2295]
[1724984946949,0.05537209,138.91,138.9,3.5995]
[1724984951749,1.3212,138.96,138.94,3.5984]
[1724984952751,1.3744587,138.96,138.94,3.64468353]
[1724984953057,0.0532587,138.96,138.95,3.5982]
[1724984960457,0.0532587,138.96,138.94,31.28468353]
[1724984960862,0.0532587,138.96,138.94,0.04628353]
[1724984961456,3.6513587,138.96,138.94,0.04628353]
[1724984969770,3.5982,138.95,138.94,0.04628353]
[1724984970283,3.5982,138.95,138.88,3.944]
[1724984970284,3.5991,138.92,138.79,56.44]
[1724984970561,1.285,138.94,138.86,27.64]
[1724984970959,1.285,138.94,138.86,33.84]
[1724984971461,0.04696856,138.91,138.89,3.65284753]
[1724984972271,0.04696856,138.91,138.9,3.5995]
[1724984975468,0.04696856,138.91,138.9,31.2395]
[1724984977267,3.5977,138.97,138.93,3.5985]
[1724984977464,3.5977,138.97,138.93,31.2385]
[1724984977664,1.32,138.98,138.93,27.64]
[1724984977866,4.9174,138.98,138.94,3.5983]
[1724984978370,0.04823323,138.97,138.95,0.04722987]
[1724984979071,0.04823323,138.97,138.95,3.64532987]
[1724984979271,0.04823323,138.97,138.95,0.04722987]
[1724984981969,0.04823323,138.97,138.95,3.64542987]
[1724984983871,0.04823323,138.97,138.96,3.5979]
[1724984984068,0.04823323,138.97,138.96,31.2379]
[1724984984270,6.2,139.04,139.0,3.5967]
[1724984984471,2.6465,139.06,138.98,27.64]
[1724984984776,3.5965,139.02,138.98,3.5973]
[1724984985171,2.6465,139.06,138.98,3.5973]
[1724984985373,3.5965,139.02,139.01,0.04583358]
[1724984985770,0.04846932,139.03,139.01,0.04583358]
[1724984986075,3.5964,139.02,139.01,0.04583358]
[1724984988285,0.04846932,139.03,139.01,0.04583358]
[1724984989777,3.5964,139.02,139.01,0.04583358]
[1724984992970,0.04846932,139.03,139.01,0.04583358]
[1724984993874,3.5964,139.02,139.01,0.04583358]
[1724984999889,3.5972,138.99,138.96,14.6479]
[1724985000482,3.54044315,139.01,138.86,51.4008]
[1724985000793,2.6465,139.06,138.94,0.05009603]
[1724985000794,0.05393271,138.97,138.94,0.05009603]
[1724985000993,0.04889406,138.97,138.94,0.05006723]
[1724985002789,0.04889406,138.97,138.95,11.05]
[1724985003596,17.91100649,139.06,138.95,11.05]
[1724985003597,11.05,139.11,138.96,58.3841898]
[1724985003889,9.72601403,139.15,139.03,11.05]
[1724985003890,12.37205387,139.1,139.03,11.05]
[1724985004091,7.20205387,139.09,139.03,11.05]
[1724985004298,9.47327817,139.09,139.03,11.05]
[1724985004492,3.59327817,139.09,139.03,11.05]
[1724985004690,3.5956,139.06,139.05,0.04655669]
[1724985005694,3.64060884,139.07,139.05,11.09655669]
[1724985005893,0.04540884,139.07,139.05,0.04655669]
[1724985006097,32.49695484,139.19,139.05,0.04655669]
[1724985006098,17.92018217,139.2,139.07,3.5951]
[1724985006293,2.6653,139.16,139.09,27.61]
[1724985006693,2.6653,139.16,139.06,30.356]
[1724985006891,2.6653,139.16,139.06,27.61]
[1724985007099,30.2753,139.16,139.1,0.0503415]
[1724985007298,3.594,139.11,139.1,0.0503415]
[1724985007490,3.55407366,139.11,139.05,27.61]
[1724985007691,27.61,139.13,139.05,27.61]
[1724985008007,3.5948,139.09,139.05,27.61]
[1724985008214,2.572,139.1,139.05,27.61]
[1724985008405,0.0481396,139.09,139.06,0.05431836]
[1724985008810,0.0481396,139.09,139.07,27.61]
[1724985009513,0.0481396,139.09,139.06,0.05431836]
[1724985009714,0.0481396,139.09,139.06,27.66431836]
[1724985011315,0.0481396,139.09,139.07,3.5951]
[1724985013313,0.0481396,139.09,139.06,0.05431836]
[1724985013913,5.88,139.08,138.88,32.93925897]
[1724985014222,27.61,139.09,138.99,27.61]
[1724985014413,3.5958,139.05,139.0,3.5968]
[1724985014916,3.64767946,139.04,139.01,0.05490021]
[1724985015425,0.05177946,139.04,139.02,27.61]
[1724985016113,0.05177946,139.04,139.02,31.2062]
[1724985017713,3.5947,139.09,139.02,27.61]
[1724985017914,5.88,139.1,139.05,27.61]
[1724985018124,5.88,139.1,139.01,34.5]
[1724985018315,5.88,139.09,138.99,34.5]
[1724985018613,34.5,139.08,138.97,34.5]
[1724985018820,0.04693997,139.04,139.01,0.04791692]
[1724985019119,3.5964,139.02,139.01,0.04791692]
[1724985019925,34.5,139.03,138.93,34.5]
[1724985020127,40.38,139.03,138.93,34.5]
[1724985020323,34.5,139.0,138.91,4.0951]
[1724985020521,3.5979,138.97,138.91,4.0951]
[1724985020715,34.5,139.0,138.91,7.6942]
[1724985020930,34.5,139.0,138.94,0.05261088]
[1724985020931,0.04689025,138.97,138.94,0.05261088]
[1724985021326,5.92689025,138.97,138.94,0.05261088]
[1724985021523,8.72809025,138.97,138.94,0.05261088]
[1724985021728,0.04689025,138.97,138.94,0.05261088]
[1724985022422,3.64479025,138.97,138.94,0.05261088]
[1724985022724,0.04689025,138.97,138.94,0.05261088]
[1724985023518,0.04689025,138.97,138.95,3.5982]
[1724985024425,0.04689025,138.97,138.96,3.5979]
[1724985027829,2.8012,139.03,138.95,34.5]
[1724985027830,3.5967,139.01,138.97,3.5975]
[1724985028421,3.5967,139.01,138.95,34.5]
[1724985028726,3.5967,139.01,138.98,3.5974]
[1724985028925,0.04648486,138.99,138.98,3.5974]
[1724985029321,0.04648486,138.99,138.97,3.6435547]
[1724985031525,3.64368486,138.99,138.97,0.0459547]
[1724985031727,0.04648486,138.99,138.97,0.0459547]
[1724985032334,3.5974,138.98,138.97,0.0459547]
[1724985033646,34.5,138.98,138.88,40.42]
[1724985033939,34.5,138.98,138.87,4.08]
[1724985034254,3.5982,138.95,138.88,34.5]
[1724985034743,1.401,138.97,138.9,0.04691661]
[1724985034744,0.04963662,138.93,138.9,0.04691661]
[1724985035437,0.04963662,138.93,138.92,3.5988]
[1724985036234,3.5977,138.97,138.93,3.5986]
[1724985036435,3.53797982,138.97,138.94,3.13535119]
[1724985036736,17.860475,139.0,138.95,28.32689746]
[1724985036936,17.860475,139.0,138.96,28.32689746]
[1724985037132,17.860475,139.0,138.97,25.19154627]
[1724985037341,17.91070015,139.0,138.98,32.96391015]
[1724985037638,21.50760015,139.0,138.99,25.19154627]
[1724985038034,27.42760015,139.0,138.99,25.19154627]
[1724985038640,21.50760015,139.0,138.99,25.19154627]
[1724985038940,21.50760015,139.0,138.99,7.43564627]
[1724985039239,3.5974,138.98,138.97,0.04567783]
[1724985039543,38.0974,138.98,138.97,0.04567783]
[1724985039729,38.0974,138.98,138.97,7.81885997]
[1724985039935,44.0174,138.98,138.97,7.81885997]
[1724985040636,9.5174,138.98,138.97,7.81885997]
[1724985042139,13.09268659,138.98,138.97,7.81885997]
[1724985042340,3.599,138.92,138.87,4.08]
[1724985042536,34.5,138.96,138.88,3.6]
[1724985042843,3.5991,138.92,138.88,3.6]
[1724985043541,3.5995,138.9,138.89,0.05450152]
[1724985044338,3.64763114,138.91,138.89,0.05450152]
[1724985045535,3.5995,138.9,138.89,0.05450152]
[1724985048238,3.5995,138.9,138.64,184.87173]
[1724985048239,3.6015,138.83,138.7,7.2093]
[1724985048550,27.63,138.85,138.79,2.6472]
[1724985048743,3.602,138.81,138.79,2.6472]
[1724985049039,5.92,138.84,138.79,2.6472]
[1724985049248,0.04667737,138.83,138.8,0.04851696]
[1724985049739,3.6018,138.81,138.8,0.04851696]
[1724985054033,0.04667737,138.83,138.8,0.04851696]
[1724985054635,34.6,138.92,138.81,34.6]
[1724985054837,34.6,138.92,138.8,0.04851696]
[1724985054838,369.6,138.94,138.83,34.6]
[1724985055241,369.6,138.94,138.86,3.6003]
[1724985055437,369.6,138.94,138.83,34.6]
[1724985055639,3.5997,138.9,138.85,3.6005]
[1724985055836,3.65464554,138.9,138.87,0.05099085]
[1724985056239,3.5997,138.89,138.87,0.05099085]
[1724985057037,3.65454554,138.9,138.87,0.05099085]
[1724985058853,0.05494554,138.9,138.87,0.05099085]
[1724985059344,3.6,138.88,138.87,0.05099085]
[1724985061944,3.5998,138.89,138.87,0.05099085]
[1724985063148,3.65454554,138.9,138.87,0.05099085]
[1724985063352,0.05494554,138.9,138.87,0.05099085]
[1724985063848,3.6,138.88,138.87,0.05099085]
[1724985066148,38.2,138.88,138.87,0.00179085]
[1724985066341,43.94,138.88,138.87,0.00179085]
[1724985066845,5.74,138.88,138.87,0.00179085]
[1724985067051,3.5998,138.89,138.87,0.00179085]
[1724985067452,3.5997,138.89,138.87,0.00179085]
[1724985067642,0.05494554,138.9,138.87,0.00179085]
[1724985068251,34.52,138.95,138.87,34.60179085]
[1724985068552,3.5986,138.94,138.88,2.7683]
[1724985068749,559.0,138.97,138.88,2.7683]
[1724985068945,5.74,138.96,138.88,2.7683]
[1724985069152,40.34,138.96,138.88,2.7683]
[1724985069445,0.04963599,138.93,138.91,0.05478655]
[1724985069852,3.64863599,138.93,138.91,0.05478655]
[1724985071046,0.04963599,138.93,138.91,0.05478655]
[1724985072358,3.5978,138.97,138.91,0.05478655]
[1724985072760,3.5975,138.98,138.94,3.5984]
[1724985073265,0.0475836,138.97,138.95,0.05395209]
[1724985074464,0.0475836,138.97,138.95,3.65215209]
[1724985077667,0.0475836,138.97,138.95,0.05395209]
[1724985078165,28.8,139.03,138.95,0.05395209]
[1724985078372,34.6,139.04,138.98,3.5972]
[1724985078870,34.6,139.04,138.95,6.27477959]
[1724985079066,34.6,139.02,138.95,6.27477959]
[1724985079261,3.5974,138.98,138.97,0.0488419]
[1724985081271,40.34,139.02,138.97,0.0488419]
[1724985081665,40.34,139.04,138.97,0.0488419]
[1724985081975,68.58566766,139.06,138.99,0.04666823]
[1724985082163,74.32566766,139.06,138.99,0.04666823]
[1724985082366,3.596,139.04,139.0,3.5968]
[1724985082869,3.5956,139.05,139.01,3.5965]
[1724985083073,3.5956,139.05,139.02,0.04642557]
[1724985083267,34.6,139.07,139.02,0.04642557]
[1724985083668,5.74,139.06,139.02,0.04642557]
[1724985084167,3.5961,139.03,139.02,0.04642557]
[1724985084970,3.5961,139.04,139.02,0.04642557]
[1724985085673,3.5961,139.03,139.02,0.04642557]
[1724985092079,31.2361,139.03,139.02,0.04642557]
[1724985092575,3.5973,138.99,138.95,2.6375]
[1724985092772,27.64,139.03,138.95,2.6375]
[1724985093172,3.5971,139.0,138.96,3.5977]
[1724985093679,0.04718757,138.99,138.97,0.04918884]
[1724985095373,3.5974,138.98,138.97,0.04918884]
[1724985097282,31.2374,138.98,138.97,0.04918884]
[1724985098482,3.5974,138.98,138.97,0.04918884]
[1724985099768,0.04718757,138.99,138.97,0.04918884]
[1724985101275,3.5974,138.98,138.97,0.04918884]
[1724985102178,0.04718757,138.99,138.97,0.04918884]
[1724985102784,0.04718757,138.99,138.97,3.64678884]
[1724985103681,5.54,139.04,138.97,0.04918884]
[1724985103976,3.5967,139.01,138.97,0.04918884]
[1724985104180,3.5967,139.01,138.98,3.5973]
[1724985104676,27.64,139.05,138.97,0.04918884]
[1724985104677,3.5974,138.98,138.97,0.04918884]
[1724985104879,27.64,139.03,138.96,1.34644506]
[1724985105778,3.5967,139.01,138.97,3.5976]
[1724985106874,3.5967,139.01,138.98,3.5973]
[1724985107383,27.64,139.05,138.98,3.5973]
[1724985107384,3.5965,139.02,138.98,3.5973]
[1724985107679,63.04828222,139.08,138.99,0.05214286]
[1724985107680,90.68828222,139.08,138.99,0.05214286]
[1724985107878,90.68828222,139.08,139.02,0.04747851]
[1724985107879,5.54,139.07,139.02,0.04747851]
[1724985108087,5.54,139.06,139.02,0.04747851]
[1724985108476,3.5957,139.05,139.02,0.04747851]
[1724985109377,27.64,139.1,139.02,0.04747851]
[1724985109681,27.64,139.1,139.05,0.0471347]
[1724985109878,3.595,139.08,139.05,0.0471347]
[1724985110872,27.64,139.1,139.05,0.0471347]
[1724985111380,3.5953,139.07,139.05,0.0471347]
[1724985113491,3.5949,139.08,139.05,0.0471347]
[1724985113680,3.5949,139.08,139.05,3.6426347]
[1724985114178,3.5947,139.09,139.05,3.6426347]
[1724985114377,27.64,139.1,139.05,0.0471347]
[1724985114579,3.595,139.08,139.05,0.0471347]
[1724985115492,3.595,139.08,139.05,3.6427347]
[1724985116183,3.5947,139.09,139.05,3.6427347]
[1724985116386,27.64,139.1,139.05,0.0471347]
[1724985116593,3.5946,139.09,139.06,0.051202]
[1724985117082,3.5946,139.09,139.06,3.646502]
[1724985117278,3.5943,139.1,139.06,3.646502]
[1724985117482,27.64,139.14,139.06,0.051202]
[1724985117678,27.64,139.14,139.09,0.05336765]
[1724985117983,3.594,139.12,139.09,0.05336765]
[1724985119186,3.5942,139.11,139.09,0.05336765]
[1724985119979,3.5943,139.1,139.09,0.05336765]
[1724985121677,5.34,139.13,139.09,0.05336765]
[1724985122083,3.5939,139.12,139.09,0.05336765]
[1724985122284,5.34,139.13,139.09,0.05336765]
[1724985122482,27.64,139.12,139.09,0.05336765]
[1724985122686,3.5943,139.1,139.09,0.05336765]
[1724985123285,27.64,139.1,139.02,1.409]
[1724985123484,27.64,139.08,139.02,1.409]
[1724985123700,32.98,139.08,139.02,5.0052]
[1724985123996,36.59328827,139.08,138.98,27.64]
[1724985124195,5.34,139.07,139.0,3.5967]
[1724985124492,3.64209798,139.04,139.02,0.05359729]
[1724985124887,0.04609798,139.04,139.02,0.05359729]
[1724985126396,0.04609798,139.04,139.02,3.64989729]
[1724985127280,0.04609798,139.04,139.03,3.5961]
[1724985128088,5.34,139.09,139.02,28.97799729]
[1724985128289,5.34,139.09,139.02,1.33799729]
[1724985128490,3.5953,139.07,139.03,3.5959]
[1724985128989,3.5953,139.07,139.04,0.04696485]
[1724985130386,3.5953,139.07,139.04,3.64276485]
[1724985130580,3.5953,139.07,139.04,0.04696485]
[1724985130787,27.64,139.14,139.04,0.04696485]
[1724985130788,3.5956,139.05,139.04,0.04696485]
[1724985130987,27.64,139.14,139.03,0.04758195]
[1724985130988,27.64,139.07,139.03,0.04758195]
[1724985131288,5.34,139.1,139.04,0.05084698]
[1724985131597,5.34,139.1,139.06,0.05492085]
[1724985132199,3.5951,139.07,139.06,0.05492085]
[1724985136301,3.5949,139.08,139.06,0.05492085]
[1724985136790,5.34,139.1,139.06,0.05492085]
[1724985137189,3.5948,139.09,139.06,0.05492085]
[1724985139296,3.5948,139.08,139.06,0.05492085]
[1724985142300,0.1496,139.16,139.06,0.05492085]
[1724985142301,11.04,139.12,139.06,3.65022085]
[1724985142600,11.04,139.12,139.08,0.05024271]
[1724985143298,3.5944,139.1,139.08,0.05024271]
[1724985143897,3.6379937,139.15,139.09,11.04]
[1724985144093,3.6379937,139.15,139.11,0.04701979]
[1724985144697,11.04,139.16,139.11,0.04701979]
[1724985145404,3.5932,139.15,139.11,3.64091979]
[1724985145605,16.38,139.17,139.11,0.04701979]
[1724985146108,3.593,139.15,139.12,3.5938]
[1724985146899,3.593,139.15,139.11,3.64091979]
[1724985147693,391.38,139.18,139.11,0.04701979]
[1724985147898,335.0,139.18,139.11,0.04701979]
[1724985148994,3.5925,139.17,139.13,3.5934]
[1724985149197,3.5925,139.17,139.14,0.0525047]
[1724985149799,3.5923,139.18,139.14,0.0525047]
[1724985150605,32.78,139.2,139.14,3.6456047]
[1724985150798,68.09196613,139.21,139.14,0.0525047]
[1724985151104,68.09196613,139.21,139.16,3.5927]
[1724985151404,73.25196613,139.21,139.17,0.05247928]
[1724985151604,3.592,139.19,139.17,0.05247928]
[1724985152001,73.25196613,139.21,139.17,0.05247928]
[1724985152204,3.5922,139.18,139.17,0.05247928]
[1724985152598,73.25196613,139.21,139.17,0.05247928]
[1724985153695,3.5921,139.19,139.17,0.05247928]
[1724985154202,73.25196613,139.21,139.17,0.05247928]
[1724985154912,3.592,139.19,139.17,0.05247928]
[1724985155094,3.56505796,139.22,139.17,0.05247928]
[1724985155295,5.16,139.23,139.17,0.05247928]
[1724985155500,3.5916,139.21,139.17,3.64487928]
[1724985156108,8.8160569,139.24,139.17,3.64487928]
[1724985156303,5.16,139.24,139.18,3.5921]
[1724985156602,3.5914,139.22,139.18,3.5921]
[1724985156805,3.5914,139.22,139.19,0.04941458]
[1724985157908,27.62,139.23,139.19,0.04941458]
[1724985158106,32.78,139.23,139.19,0.04941458]
[1724985158306,3.5917,139.2,139.19,0.04941458]
[1724985160212,32.78,139.23,139.19,0.04941458]
[1724985160213,3.5916,139.21,139.19,0.04941458]
[1724985160901,36.39258801,139.25,139.19,0.04941458]
[1724985161211,8.77258801,139.25,139.19,0.04941458]
[1724985162014,3.5914,139.22,139.19,0.04941458]
[1724985164605,36.39258801,139.25,139.19,0.04941458]
[1724985165207,3.5917,139.2,139.19,0.04941458]
[1724985167218,3.5927,139.17,139.12,30.3717]
[1724985167406,3.5927,139.17,139.13,3.5933]
[1724985167606,3.61258801,139.25,139.12,1.3964]
[1724985167607,3.63900387,139.18,139.12,1.3964]
[1724985167811,3.5932,139.15,139.12,1.3964]
[1724985168112,5.16,139.18,139.12,1.3964]
[1724985168306,0.05032241,139.16,139.14,0.04547186]
[1724985168518,3.593,139.15,139.14,0.04547186]
[1724985170921,0.05032241,139.16,139.14,0.04547186]
[1724985172115,27.62,139.23,139.14,0.04547186]
[1724985172116,27.62,139.23,139.14,27.66547186]
[1724985172319,32.78,139.23,139.14,27.62]
[1724985172522,27.62,139.23,139.14,27.62]
[1724985172821,5.16,139.22,139.14,27.62]
[1724985173032,5.16,139.22,139.17,0.0518206]
[1724985173817,3.5922,139.19,139.17,0.0518206]
[1724985174421,3.5922,139.18,139.17,0.0518206]
[1724985178517,5.16,139.21,139.17,0.0518206]
[1724985178724,4.94,139.22,139.17,0.0518206]
[1724985178925,4.94,139.23,139.17,0.0518206]
[1724985179216,3.5916,139.21,139.17,3.6441206]
[1724985180633,224.0,139.33,139.19,27.62]
[1724985180917,71.3977109,139.3,139.23,0.05273444]
[1724985181224,3.66099015,139.29,139.23,0.05273444]
[1724985181417,71.3977109,139.3,139.23,0.05273444]
[1724985181618,75.01510657,139.3,139.23,0.05273444]
[1724985181823,3.5901,139.27,139.23,3.64363444]
[1724985182314,75.01510657,139.3,139.23,3.64363444]
[1724985182512,3.5901,139.27,139.23,3.64363444]
[1724985183421,75.01510657,139.3,139.23,3.64363444]
[1724985183422,3.5902,139.26,139.23,3.64363444]
[1724985183620,3.5902,139.26,139.23,0.05273444]
[1724985183815,3.5898,139.28,139.23,0.05273444]
[1724985184216,3.5898,139.28,139.24,3.5905]
[1724985184423,4.94,139.3,139.23,0.05273444]
[1724985184722,3.5894,139.29,139.25,3.5904]
[1724985184917,3.58958707,139.31,139.26,0.04592412]
[1724985185120,256.38168702,139.38,139.26,0.04592412]
[1724985185422,1.31948907,139.36,139.3,27.67400489]
[1724985185625,4.94,139.4,139.32,27.62]
[1724985185917,4.94,139.4,139.3,0.05400489]
[1724985185918,3.5869,139.39,139.35,0.04820212]
[1724985186318,4.94,139.42,139.36,27.62]
[1724985186519,338.63303411,139.44,139.38,3.5868]
[1724985186520,8.526,139.43,139.38,3.5868]
[1724985186722,8.526,139.43,139.39,0.05041876]
[1724985186919,4.94,139.43,139.39,0.05041876]
[1724985187617,4.94,139.42,139.39,0.05041876]
[1724985188520,3.5863,139.41,139.39,0.05041876]
[1724985189122,4.94,139.42,139.39,0.05041876]
[1724985189422,8.5263,139.42,139.39,0.05041876]
[1724985190426,3.5863,139.42,139.39,0.05041876]
[1724985190818,3.5863,139.41,139.39,0.05041876]
[1724985191322,3.60704548,139.45,139.39,0.05041876]
[1724985191323,3.5861,139.42,139.39,0.05041876]
[1724985192431,8.5258,139.44,139.39,0.05041876]
[1724985192626,3.5858,139.44,139.39,0.05041876]
[1724985193131,4.94,139.46,139.39,27.67041876]
[1724985193319,4.94,139.47,139.41,0.05371913]
[1724985193519,3.5853,139.45,139.41,0.05371913]
[1724985194226,3.5856,139.44,139.41,0.05371913]
[1724985194630,4.94,139.46,139.41,0.05371913]
[1724985194817,3.5855,139.45,139.41,0.05371913]
[1724985195125,3.64643856,139.45,139.41,0.05371913]
[1724985195423,3.586,139.43,139.41,0.05371913]
[1724985196125,3.64643856,139.45,139.41,0.05371913]
[1724985196531,3.586,139.43,139.41,0.05371913]
[1724985196925,3.64643856,139.45,139.41,0.05371913]
[1724985197124,3.586,139.43,139.41,0.05371913]
[1724985197328,3.64643856,139.45,139.41,0.05371913]
[1724985198031,4.94,139.45,139.41,0.05371913]
[1724985198626,4.94,139.46,139.41,0.05371913]
[1724985199032,4.94,139.46,139.41,3.64001913]
[1724985199033,3.5855,139.45,139.41,3.64001913]
[1724985199429,3.5851,139.46,139.42,3.586]
[1724985201638,68.78194913,139.49,139.43,31.2057]
[1724985201639,3.5849,139.47,139.43,31.2057]
[1724985201836,3.5849,139.47,139.44,0.04571904]
[1724985203433,3.5849,139.47,139.44,3.63121904]
[1724985203633,3.5845,139.48,139.44,0.04571904]
[1724985204033,3.5845,139.48,139.44,3.63121904]
[1724985205535,68.78194913,139.49,139.44,0.04571904]
[1724985206330,73.72194913,139.49,139.44,0.04571904]
[1724985206537,73.72194913,139.49,139.44,3.63121904]
[1724985206937,73.72194913,139.49,139.44,0.04571904]
[1724985207437,3.5853,139.45,139.44,0.04571904]
[1724985214539,3.5853,139.45,139.36,2.6481]
[1724985214540,3.53536583,139.45,139.36,2.6481]
[1724985214740,32.56,139.46,139.36,2.6481]
[1724985214741,27.62,139.43,139.36,2.6481]
[1724985214934,4.94,139.42,139.36,2.6481]
[1724985215249,3.5873,139.38,139.36,2.6481]
[1724985215542,0.04863256,139.38,139.36,2.69336447]
[1724985216336,0.04863256,139.38,139.37,27.62]
[1724985216641,27.62,139.45,139.37,27.62]
[1724985216833,27.62,139.47,139.38,27.62]
[1724985217239,27.62,139.47,139.38,31.2071]
[1724985217435,3.5854,139.45,139.38,27.62]
[1724985217637,8.5254,139.45,139.4,27.62]
[1724985217842,3.5854,139.45,139.4,27.67353002]
[1724985218541,3.5848,139.47,139.42,3.5859]
[1724985218750,228.94,139.48,139.43,0.04532052]
[1724985219042,228.94,139.48,139.43,3.63112052]
[1724985219043,3.5847,139.48,139.43,3.63112052]
[1724985219243,3.5847,139.48,139.43,0.04532052]
[1724985219442,4.94,139.49,139.43,0.04532052]
[1724985219643,3.5848,139.47,139.43,3.63102052]
[1724985220549,3.5848,139.47,139.43,6.28422052]
[1724985221043,27.62,139.52,139.44,31.2053]
[1724985221246,27.62,139.52,139.47,0.0551893]
[1724985221544,4.94,139.49,139.47,0.0551893]
[1724985221843,4.94,139.51,139.47,0.0551893]
[1724985223042,3.5845,139.49,139.47,0.0551893]
[1724985223747,4.94,139.51,139.48,3.5844]
[1724985223949,4.94,139.55,139.48,3.5844]
[1724985224145,3.65122615,139.57,139.5,0.04833072]
[1724985224354,6.25763865,139.56,139.5,0.04833072]
[1724985224541,6.25763865,139.55,139.5,0.04833072]
[1724985224744,3.5835,139.53,139.5,0.04833072]
[1724985225562,3.5825,139.56,139.52,27.62]
[1724985225743,9.86168169,139.62,139.52,27.62]
[1724985225744,32.56,139.62,139.52,27.62]
[1724985225942,1.31732013,139.61,139.56,0.04932766]
[1724985226138,27.62,139.58,139.56,0.04932766]
[1724985226338,3.66198193,139.57,139.56,0.04932766]
[1724985226550,1.3174181,139.57,139.56,0.04932766]
[1724985226752,31.26226301,139.58,139.56,0.04932766]
[1724985226949,32.51965767,139.57,139.56,0.04932766]
[1724985227648,36.16634966,139.57,139.56,0.04932766]
[1724985228142,34.84889199,139.57,139.56,0.04932766]
[1724985228350,36.16631767,139.57,139.56,0.04932766]
[1724985228540,32.51962568,139.57,139.56,0.04932766]
[1724985228942,37.45962568,139.57,139.56,0.04932766]
[1724985229147,40.97120191,139.57,139.56,0.04932766]
[1724985229651,36.03120191,139.57,139.56,0.04932766]
[1724985230450,36.03126497,139.57,139.56,0.04932766]
[1724985231347,40.97122734,139.57,139.56,0.04932766]
[1724985232346,3.5835,139.53,139.48,3.5845]
[1724985232549,4.94,139.56,139.48,3.5845]
[1724985233059,4.94,139.56,139.47,29.0322]
[1724985233352,0.05078169,139.53,139.5,0.05385146]
[1724985234350,3.63408169,139.53,139.5,0.05385146]
[1724985235349,0.05078169,139.53,139.5,0.05385146]
[1724985235749,27.62,139.51,139.29,8.96299092]
[1724985235950,8.57619548,139.5,139.4,28.926]
[1724985236151,4.94,139.5,139.43,3.5858]
[1724985236353,3.5847,139.48,139.4,32.49015967]
[1724985236553,3.5847,139.48,139.41,27.62]
[1724985236955,0.0462527,139.46,139.43,3.63989875]